Workbook

Sheet Trasplantes
B2: Indicador MIDE "DS3-152 Trasplantes de órganos y tejidos realizados", Valores 2018 - 2023
B3: Año | D3: Hígado | F3: Riñón | H3: Cornea | J3: Corazón | L3: Páncreas | N3: Hígado-Riñón | P3: Hueso | R3: Riñón-Páncreas | T3: Multivisceral | V3: Riñón-Riñón | X3: Total | Z3: Gran Total
D4: DV | E4: DC | F4: DV | G4: DC | H4: DV | I4: DC | J4: DV | K4: DC | L4: DV | M4: DC | N4: DV | O4: DC | P4: DV | Q4: DC | R4: DV | S4: DC | T4: DV | U4: DC | V4: DV | W4: DC | X4: DV | Y4: DC
B5: 2018 | C5: 1er Cuatrimestre | D5: 1 | E5: 6 | F5: 147 | G5: 35 | I5: 97 | K5: 1 | Q5: 66 | S5: 1 | X5: =SUM(D5,F5,H5,J5,L5,N5,P5,R5,T5,V5) -> 148 | Y5: =SUM(E5,G5,I5,K5,M5,O5,Q5,S5,U5,W5) -> 206 | Z5: =SUM(X5:Y5) -> 354
C6: 2do Cuatrimestre | D6: 2 | E6: 9 | F6: 175 | G6: 19 | I6: 99 | K6: 1 | Q6: 102 | X6: =SUM(D6,F6,H6,J6,L6,N6,P6,R6,T6,V6) -> 177 | Y6: =SUM(E6,G6,I6,K6,M6,O6,Q6,S6,U6,W6) -> 230 | Z6: =SUM(X6:Y6) -> 407
C7: 3er Cuatrimestre | E7: 13 | F7: 146 | G7: 34 | I7: 70 | K7: 1 | Q7: 83 | X7: =SUM(D7,F7,H7,J7,L7,N7,P7,R7,T7,V7) -> 146 | Y7: =SUM(E7,G7,I7,K7,M7,O7,Q7,S7,U7,W7) -> 201 | Z7: 347
B8: 2019 | C8: 1er Cuatrimestre | D8: 2 | E8: 8 | F8: 152 | G8: 31 | I8: 69 | M8: 1 | Q8: 77 | X8: =SUM(D8,F8,H8,J8,L8,N8,P8,R8,T8,V8) -> 154 | Y8: =SUM(E8,G8,I8,K8,M8,O8,Q8,S8,U8,W8) -> 186 | Z8: =SUM(X8:Y8) -> 340
C9: 2do Cuatrimestre | E9: 12 | F9: 186 | G9: 36 | I9: 85 | K9: 1 | Q9: 69 | U9: 1 | X9: 186 | Y9: 204 | Z9: =SUM(X9:Y9) -> 390
C10: 3er Cuatrimestre | D10: 3 | E10: 10 | F10: 195 | G10: 23 | I10: 65 | K10: 1 | Q10: 80 | X10: 198 | Y10: 179 | Z10: 377
B11: 2020 | C11: 1er Cuatrimestre | D11: 1 | E11: 5 | F11: 138 | G11: 15 | I11: 73 | Q11: 38 | X11: 139 | Y11: 131 | Z11: =SUM(X11:Y11) -> 270
C12: 2do Cuatrimestre | D12: 1 | Q12: 41 | X12: 1 | Y12: 41 | Z12: =SUM(X12:Y12) -> 42
C13: 3er Cuatrimestre | D13: 3 | E13: 6 | F13: 49 | G13: 6 | I13: 22 | Q13: 62 | X13: 52 | Y13: 96 | Z13: 148
B14: 2021 | C14: 1er Cuatrimestre | D14: 2 | E14: 3 | F14: 91 | G14: 17 | I14: 15 | Q14: 41 | X14: 93 | Y14: 76 | Z14: =SUM(X14:Y14) -> 169
C15: 2do Cuatrimestre | D15: 4 | E15: 9 | F15: 170 | G15: 24 | I15: 48 | K15: 3 | Q15: 46 | W15: 2 | X15: 174 | Y15: 132 | Z15: =SUM(X15:Y15) -> 306
C16: 3er Cuatrimestre | D16: 1 | E16: 4 | F16: 179 | G16: 16 | I16: 51 | Q16: 43 | X16: 180 | Y16: 114 | Z16: 294
B17: 2022 | C17: 1er Cuatrimestre | D17: 7 | E17: 6 | F17: 156 | G17: 21 | I17: 35 | K17: 1 | M17: 1 | O17: 1 | Q17: 46 | X17: 163 | Y17: 111 | Z17: =SUM(X17:Y17) -> 274
C18: 2do Cuatrimestre | D18: 3 | E18: 11 | F18: 178 | G18: 23 | I18: 73 | Q18: 46 | X18: 181 | Y18: 153 | Z18: =SUM(X18:Y18) -> 334
C19: 3er Cuatrimestre | D19: 3 | E19: 6 | F19: 176 | G19: 20 | I19: 80 | O19: 1 | Q19: 23 | X19: 179 | Y19: 130 | Z19: 309
B20: 2023 | C20: 1er Cuatrimestre | D20: 4 | E20: 13 | F20: 160 | G20: 37 | I20: 65 | Q20: 26 | X20: =SUM(D20,F20,H20,J20,L20,N20,P20,R20,T20,V20) -> 164 | Y20: =SUM(E20,G20,I20,K20,M20,O20,Q20,S20,U20,W20) -> 141 | Z20: =SUM(X20:Y20) -> 305
C21: 2do Cuatrimestre | D21: 4 | E21: 12 | F21: 196 | G21: 44 | I21: 110 | Q21: 39 | W21: 1 | X21: 200 | Y21: 206 | Z21: 406
C22: 3er Cuatrimestre | X22: 0 | Y22: 0 | Z22: =SUM(X22:Y22) -> 0
B23: Total (por trasplante) | D23: =SUM(D5:D22) -> 41 | E23: =SUM(E5:E22) -> 133 | F23: 2494 | G23: 401 | H23: 0 | I23: 1057 | J23: 0 | K23: 9 | L23: 0 | M23: 2 | N23: 0 | O23: 2 | P23: 0 | Q23: 928 | R23: 0 | S23: 1 | T23: 0 | U23: 1 | V23: 0 | W23: 3
B24: Fuente: Coordinación del Registro Estatal de Trasplantes del Centro de Trasplantes de Órganos y Tejidos del Estado de Jalisco (CETRAJAL). Cifras al corte de agosto del 2023 * Los trasplantes de Donante Vivo solo se pueden realizar en Hígado y Riñón **DV: Donante Vivo; DC: Donante Cadavérico
